bitfinex-derivatives/quotes_BNBF0:USTF0_20250406
["timestamp","ask_amount","ask_price","bid_price","bid_amount"]
[1743934681202,0.29565062,589.01,587.87,0.28599892]
[1743934681406,0.29565062,589.01,587.86,0.28599892]
[1743934681607,0.29565062,589.01,587.87,0.28599892]
[1743934681803,0.29565062,589.01,587.85,0.34022284]
[1743934682003,0.29565062,589.01,587.86,0.28599892]
[1743934682608,0.507,589.02,587.86,0.28599892]
[1743934683203,0.57775031,589.01,587.86,0.28599892]
[1743934683408,0.57775031,589.0,587.86,0.28599892]
[1743934683605,0.57775031,588.99,587.86,0.28599892]
[1743934683806,0.57744294,588.98,587.86,0.28599892]
[1743934684111,0.57744294,588.98,587.85,0.63587723]
[1743934684112,0.57744294,588.97,587.85,0.63587723]
[1743934684312,0.57744294,588.97,587.85,0.34022284]
[1743934684611,0.57744294,588.96,587.85,0.34022284]
[1743934684809,0.57744294,588.95,587.85,0.34022284]
[1743934685010,0.57744294,588.94,587.85,0.34022284]
[1743934685210,0.91704187,588.93,587.85,0.34022284]
[1743934685410,0.91704764,588.92,587.85,0.34022284]
[1743934685611,0.9170534,588.91,587.85,0.34022284]
[1743934685911,0.91705917,588.9,587.85,0.34022284]
[1743934686212,0.57744294,588.89,587.85,0.34022284]
[1743934686411,0.57744294,588.88,587.85,0.34022284]
[1743934686604,0.57744294,588.87,587.85,0.34022284]
[1743934686808,0.57744294,588.86,587.85,0.34022284]
[1743934687011,0.57744294,588.85,587.85,0.34022284]
[1743934687211,0.57744294,588.84,587.85,0.34022284]
[1743934687409,0.57744294,588.83,587.85,0.34022284]
[1743934687710,0.57744294,588.82,587.85,0.34022284]
[1743934687911,0.57744294,588.81,587.85,0.34022284]
[1743934688110,0.57744294,588.8,587.85,0.34022284]
[1743934688304,0.57744294,588.79,587.85,0.34022284]
[1743934688506,0.57744294,588.78,587.85,0.34022284]
[1743934688705,0.57744294,588.77,587.85,0.34022284]
[1743934689009,0.57744294,588.76,587.85,0.34022284]
[1743934689311,0.57647589,588.75,587.85,0.34022284]
[1743934689513,0.57647589,588.74,587.85,0.34022284]
[1743934689712,0.57647589,588.73,587.85,0.34022284]
[1743934690011,0.57647589,588.72,587.85,0.34022284]
[1743934690210,0.57647589,588.71,587.59,0.29582529]
[1743934690413,0.57647589,588.7,587.6,0.28620615]
[1743934690606,0.57647589,588.69,587.6,0.28620615]
[1743934690811,0.57647589,588.68,587.61,0.28620882]
[1743934691012,0.57647589,588.67,587.6,0.28620882]
[1743934691212,0.57647589,588.66,587.62,0.28620882]
[1743934691512,0.57647589,588.65,587.63,0.28620882]
[1743934691712,0.57647589,588.64,587.27,0.28620882]
[1743934691912,0.57647589,588.63,587.27,0.28620882]
[1743934692107,0.57647589,588.62,587.27,0.28620882]
[1743934692307,0.57578909,588.61,587.31,0.34053566]
[1743934692611,0.57578909,588.6,587.32,0.28620882]
[1743934692812,0.57578909,588.59,587.32,0.28620882]
[1743934693014,0.57578909,588.58,587.32,0.28620882]
[1743934693312,0.57578909,588.57,587.32,0.28620882]
[1743934693511,0.57578909,588.56,587.32,0.28620882]
[1743934693712,0.57578909,588.55,587.32,0.28620882]
[1743934693913,0.57527188,588.54,587.32,0.28620882]
[1743934694107,0.57527188,588.53,587.32,0.28620882]
[1743934694311,0.57527188,588.6,587.32,0.28620882]
[1743934694513,0.57527188,588.59,587.32,0.28620882]
[1743934694714,1.22827188,588.58,587.32,0.28620882]
[1743934694915,0.57527188,588.57,587.32,0.28620882]
[1743934695107,0.57527188,588.56,587.32,0.28620882]
[1743934695413,0.57527188,588.55,587.32,0.28620882]
[1743934695613,0.57461942,588.54,587.32,0.28620882]
[1743934695813,0.88715589,588.53,587.33,0.28620882]
[1743934696114,0.88715589,588.52,587.34,0.28620882]
[1743934696412,0.31253911,588.51,587.35,0.28620882]
[1743934696613,0.57461942,588.55,587.36,0.28620882]
[1743934696913,0.88716005,588.54,587.37,0.28620882]
[1743934697115,0.31254063,588.53,587.38,0.28620882]
[1743934697313,0.88716005,588.55,587.32,0.28620882]
[1743934697511,0.31253104,588.54,587.33,0.28620882]
[1743934697808,0.31253104,588.53,587.34,0.28620882]
[1743934698009,0.31253104,588.54,587.35,0.62672129]
[1743934698212,0.31253128,588.55,587.36,0.28620882]
[1743934698607,0.31253128,588.56,587.36,0.28620882]
[1743934698810,0.31253128,588.55,587.36,0.28620882]
[1743934699010,0.29589824,588.57,587.37,0.34050087]
[1743934699208,0.31253042,588.56,587.38,0.28625297]
[1743934700012,0.721,588.55,587.38,0.28625297]
[1743934700213,0.31253042,588.54,587.38,0.28625297]
[1743934700714,0.721,588.55,587.39,0.28625252]
[1743934701010,0.31252995,588.54,587.4,0.28625252]
[1743934701214,0.31252995,588.54,587.38,0.28625252]
[1743934703208,0.721,588.55,587.38,0.28625252]
[1743934704720,0.29588692,588.54,587.38,0.28625252]
[1743934704920,0.29588692,588.54,587.37,0.34050087]
[1743934705122,0.29588692,588.54,587.38,0.28625419]
[1743934705317,0.29588692,588.54,587.39,0.34048928]
[1743934705720,0.29588692,588.54,587.4,0.28625419]
[1743934705922,0.29588692,588.54,587.4,0.62673767]
[1743934706122,0.29588692,588.54,587.41,0.28625419]
[1743934706525,0.721,588.55,587.41,0.28625419]
[1743934707524,0.721,588.55,587.42,0.28625019]
[1743934707723,0.721,588.55,587.43,0.28625019]
[1743934708019,0.29588314,588.54,587.44,0.28625019]
[1743934708223,0.29588314,588.54,587.41,0.28625019]
[1743934708420,0.29588314,588.54,587.42,0.28625019]
[1743934708619,0.29588314,588.54,587.41,0.28625019]
[1743934709723,0.721,588.55,587.41,0.28625019]
[1743934710826,0.29588314,588.54,587.41,0.28625019]
[1743934714123,0.31252941,588.53,587.41,0.28625019]
[1743934714930,0.29588314,588.54,587.41,0.28625019]
[1743934715629,0.721,588.55,587.4,0.34048348]
[1743934715830,0.721,588.55,587.42,0.28624949]
[1743934716126,0.721,588.55,587.43,0.28624949]
[1743934716333,0.721,588.55,587.44,0.28624949]
[1743934716531,0.721,588.55,587.45,0.28624949]
[1743934716730,0.721,588.55,587.41,0.28624949]
[1743934716931,0.29588314,588.54,587.42,0.28624949]
[1743934717128,0.29588314,588.54,587.41,0.28624949]
[1743934717331,0.29588314,588.54,587.42,0.28624949]
[1743934717530,0.29588314,588.54,587.42,0.28624866]
[1743934717730,0.29588314,588.54,587.43,0.28624866]
[1743934718031,0.29588314,588.54,587.44,0.28624866]
[1743934718227,0.29588314,588.54,587.41,0.28624866]
[1743934718630,0.721,588.55,587.41,0.28624866]
[1743934719827,0.29588314,588.54,587.41,0.28624866]
[1743934721634,0.721,588.55,587.41,0.28624866]
[1743934722235,0.5742167,588.54,587.4,0.34048348]
[1743934722434,0.5742167,588.53,587.4,0.34048348]
[1743934722735,0.5742167,588.52,587.4,0.34048348]
[1743934723035,0.5742167,588.51,587.4,0.63639556]
[1743934723235,0.5742167,588.5,587.4,0.63639556]
[1743934723435,0.5742167,588.49,587.4,0.63639556]
[1743934723636,0.5742167,588.52,587.41,0.2862794]
[1743934723935,0.5742167,588.51,587.41,0.2862794]
[1743934724236,0.5742167,588.5,587.41,0.2862794]
[1743934724432,0.5742167,588.49,587.41,0.2862794]
[1743934724629,0.5742167,588.48,587.41,0.2862794]
[1743934724834,0.5742167,588.54,587.41,0.2862794]
[1743934725037,0.5742167,588.53,587.41,0.2862794]
[1743934725236,0.5742167,588.52,587.41,0.2862794]
[1743934725438,0.5742167,588.51,587.4,0.34048348]
[1743934725638,0.5742167,588.5,587.41,0.28627802]
[1743934725837,0.5742167,588.49,587.41,0.28627802]
[1743934726035,0.5742167,588.48,587.41,0.28627802]
[1743934726235,0.29596115,588.5,587.4,0.63644463]
[1743934726236,0.5742167,588.49,587.42,0.28627808]
[1743934726433,0.5742167,588.49,587.43,0.28627808]
[1743934726639,0.5742167,588.48,587.41,0.28627808]
[1743934726839,0.5742167,588.49,587.42,0.28627808]
[1743934727036,0.5742167,588.48,587.41,0.28627808]
[1743934727237,0.5742167,588.49,587.42,0.28627808]
[1743934727441,0.5742167,588.48,587.41,0.28627808]
[1743934727641,0.5742167,588.49,587.42,0.28627808]
[1743934727836,0.5742167,588.48,587.43,0.28627808]
[1743934728038,0.5742167,588.49,587.44,0.28627808]
[1743934728243,0.57507623,588.48,587.45,0.28627808]
[1743934728438,0.57507623,588.49,587.41,0.28627808]
[1743934728643,0.57507623,588.48,587.42,0.28627808]
[1743934728943,0.57507623,588.49,587.43,0.28627322]
[1743934729240,0.57507623,588.48,587.44,0.28627322]
[1743934729443,0.57507623,588.49,587.41,0.28627322]
[1743934729643,0.57507623,588.48,587.42,0.28627322]
[1743934729942,0.29596115,588.5,587.43,0.28627322]
[1743934730142,0.29596115,588.5,587.44,0.28627322]
[1743934730343,0.29596115,588.5,587.41,0.28627322]
[1743934730543,0.29596115,588.5,587.4,0.63644463]
[1743934730544,0.29596115,588.5,587.42,0.28627322]
[1743934730738,0.29596115,588.5,587.41,0.28627322]
[1743934731043,0.29596115,588.5,587.4,0.63644463]
[1743934731238,0.29596115,588.5,587.42,0.28624076]
[1743934731443,0.29596115,588.5,587.43,0.28624076]
[1743934731744,0.29596115,588.5,587.44,0.28624076]
[1743934731940,0.29596115,588.5,587.45,0.28624076]
[1743934732137,0.29596115,588.5,587.41,0.28624076]
[1743934732337,0.29596115,588.5,587.42,0.62671265]
[1743934732540,0.29596115,588.5,587.43,0.28624076]
[1743934733141,0.608,588.49,587.43,0.28624076]
[1743934733340,0.608,588.49,587.43,0.62670685]
[1743934733541,0.608,588.49,587.44,0.28624076]
[1743934734445,0.608,588.49,587.45,0.3404545]
[1743934734745,0.29586553,588.48,587.46,0.28624076]
[1743934734947,0.29586553,588.48,587.47,0.34044291]
[1743934735142,0.29586553,588.48,587.48,0.28624076]
[1743934735338,0.29586553,588.48,587.49,0.34043132]
[1743934735542,0.29586553,588.48,587.5,0.28624076]
[1743934735743,0.29586553,588.48,587.5,0.62666629]
[1743934735943,0.29586553,588.48,587.51,0.62666049]
[1743934736145,0.29586553,588.48,587.52,0.6266547]
[1743934736346,0.29586553,588.48,587.53,0.28624076]
[1743934736548,0.29586553,588.48,587.53,0.6266489]
[1743934736741,0.29586553,588.48,587.54,0.28624076]
[1743934736945,0.29586553,588.48,587.53,0.34040814]
[1743934737147,0.29586553,588.48,587.54,0.28618969]
[1743934737345,0.592,588.47,587.54,0.28618969]
[1743934740348,0.57608645,588.46,587.54,0.28618969]
[1743934740547,0.57608645,588.45,587.54,0.28618969]
[1743934740750,0.57608645,588.46,587.54,0.28618969]
[1743934740947,0.8719633,588.45,587.54,0.28618969]
[1743934741150,0.29587685,588.45,587.54,0.28618969]
[1743934741649,0.57608645,588.44,587.54,0.28618969]
[1743934741851,0.57608645,588.43,587.54,0.28618969]
[1743934742051,0.29587685,588.45,587.54,0.28618969]
[1743934742052,0.57608645,588.42,587.54,0.28618969]
[1743934742354,0.57608645,588.41,587.54,0.28618969]
[1743934742550,0.57608645,588.4,587.54,0.28618969]
[1743934742754,0.57608645,588.39,587.54,0.28618969]
[1743934742954,0.57608645,588.38,587.54,0.28618969]
[1743934743159,0.57608645,588.46,587.55,0.28621969]
[1743934743354,0.57608645,588.45,587.54,0.28621969]
[1743934743551,0.57608645,588.44,587.54,0.28621969]
[1743934743756,0.592,588.47,587.54,0.28621969]
[1743934743757,0.57608645,588.43,587.54,0.28621969]
[1743934743953,0.57608645,588.42,587.54,0.28621969]
[1743934744155,0.57608645,588.41,587.54,0.28621969]
[1743934744357,0.57608645,588.4,587.54,0.28621969]
[1743934744655,0.57608645,588.39,587.54,0.28621969]
[1743934744855,0.57608645,588.38,587.54,0.28621969]
[1743934745053,0.57608645,588.37,587.54,0.28621969]
[1743934745257,0.57608645,588.36,587.54,0.28621969]
[1743934745458,0.57608645,588.35,587.58,1.26919122]
[1743934745754,0.57951312,588.34,587.59,0.28621969]
[1743934745958,0.57951312,588.33,587.59,0.28621969]
[1743934746153,0.57951312,588.32,587.59,0.28621969]
[1743934746355,0.57951312,588.31,587.58,1.26919122]
[1743934746557,0.57951312,588.3,587.59,0.28621662]
[1743934746858,0.592,588.47,587.59,0.28621662]
[1743934746859,0.57951312,588.29,587.59,0.28621662]
[1743934747058,0.57951312,588.28,587.59,0.28621662]
[1743934747251,0.57951312,588.27,587.59,0.28621662]
[1743934747456,0.57951312,588.26,587.59,0.28621662]
[1743934747659,0.29586805,588.35,587.59,0.28621662]
[1743934747862,0.57999968,588.34,587.59,1.55540784]
[1743934748161,0.57999968,588.33,587.6,0.28621662]
[1743934748362,0.57999968,588.32,587.6,0.28621662]
[1743934748556,0.57999968,588.31,587.6,0.28621662]
[1743934748757,0.57999968,588.3,587.6,0.28621662]
[1743934749057,0.57999968,588.29,587.6,0.28621662]
[1743934749259,0.57999968,588.28,587.6,0.28621662]
[1743934749460,0.57999968,588.27,587.6,0.28621662]
[1743934749761,0.57999968,588.26,587.61,0.28621624]
[1743934749961,0.57999968,588.25,587.6,0.28621624]
[1743934750257,0.57999968,588.24,587.6,0.28621624]
[1743934750456,0.29588189,588.35,587.6,0.28621624]
[1743934750661,0.58033534,588.34,587.6,0.28621624]
[1743934750862,0.58033534,588.33,587.6,0.28621624]
[1743934751162,0.58033534,588.32,587.6,0.28621624]
[1743934751363,0.58033534,588.31,587.59,0.28621624]
[1743934751557,0.58033534,588.3,587.6,0.2862205]
[1743934751859,0.58033534,588.29,587.61,0.2862205]
[1743934752063,0.58033534,588.28,587.59,0.2862205]
[1743934752362,0.58033534,588.27,587.6,0.2862205]
[1743934752563,0.58033534,588.46,587.59,0.2862205]
[1743934752764,0.58033534,588.45,587.6,0.2862205]
[1743934753059,0.29586805,588.35,587.58,1.26919122]
[1743934753363,0.58014699,588.34,587.59,0.28622465]
[1743934753559,0.58014699,588.33,587.59,0.28622465]
[1743934753764,0.58014699,588.32,587.54,0.28622465]
[1743934754064,0.58014699,588.31,587.55,0.28622465]
[1743934754265,0.58014699,588.3,587.54,0.28622465]
[1743934754459,0.58014699,588.29,587.55,0.28622465]
[1743934754663,0.58014699,588.29,587.53,0.34040814]
[1743934754664,0.58014699,588.28,587.53,0.34040814]
[1743934754965,0.58014699,588.27,587.54,0.28623212]
[1743934755165,0.58014699,588.46,587.54,0.28623212]
[1743934755363,0.58014699,588.45,587.54,0.28623212]
[1743934755563,0.58014699,588.44,587.54,0.28623212]
[1743934755761,0.58014699,588.43,587.54,0.28623212]
[1743934755965,0.58014699,588.42,587.54,0.28623212]
[1743934756164,0.58014699,588.41,587.54,0.28623212]
[1743934756364,0.58014699,588.4,587.54,0.28623212]
[1743934756565,0.58014699,588.39,587.54,0.28623212]
[1743934756761,0.58014699,588.38,587.54,0.28623212]
[1743934756967,0.58014699,588.37,587.54,0.28623212]
[1743934757267,0.58014699,588.36,587.54,0.28623212]
[1743934757462,0.58014699,588.35,587.54,0.28623212]
[1743934757665,0.58014699,588.34,587.54,0.28623212]
[1743934757865,0.58014699,588.33,587.54,0.28623212]
[1743934758067,0.58014699,588.32,587.54,0.28623212]
[1743934758268,0.58014699,588.31,587.54,0.28623212]
[1743934758570,0.58011994,588.3,587.54,0.28623212]
[1743934758767,0.58011994,588.29,587.54,0.28623212]
[1743934758972,0.58011994,588.28,587.54,0.28623212]
[1743934759169,0.58011994,588.27,587.54,0.28623212]
[1743934759367,0.58011994,588.26,587.54,0.28623212]
[1743934759566,0.58011994,588.25,587.54,0.28623212]
[1743934759767,0.58011994,588.24,587.53,1.60959936]
[1743934759968,0.58011994,588.23,587.54,0.28622398]
[1743934760167,0.57,588.33,587.54,0.28622398]
[1743934760368,0.58014798,588.32,587.54,0.28622398]
[1743934760565,0.58014798,588.31,587.56,1.26919122]
[1743934760768,0.58014798,588.3,587.57,0.28622398]
[1743934760966,0.58014798,588.29,587.57,0.28622398]
[1743934761162,0.58014798,588.28,587.57,0.28622398]
[1743934761467,0.58014798,588.27,587.56,1.26919122]
[1743934761768,0.58014798,588.26,587.57,0.28623437]
[1743934761968,0.58014798,588.25,587.57,0.28623437]
[1743934762164,0.58012894,588.24,587.57,0.28623437]
[1743934762464,0.58012894,588.23,587.57,0.28623437]
[1743934762669,0.58012894,588.22,587.57,0.28623437]
[1743934762869,0.58012894,588.21,587.61,1.26919122]
[1743934763070,0.57,588.33,587.62,0.28623437]
[1743934763268,0.58011584,588.32,587.62,0.28623437]
[1743934763469,0.58011584,588.31,587.62,0.28623437]
[1743934763670,0.58011584,588.3,587.62,0.28623437]
[1743934763871,0.58011584,588.29,587.62,0.28623437]
[1743934764171,0.58011584,588.28,587.62,0.28623437]
[1743934764469,0.58011584,588.27,587.62,0.28623437]
[1743934764670,0.58011584,588.26,587.62,0.28623437]
[1743934764866,0.58011584,588.25,587.63,0.28623225]
[1743934765066,0.58011584,588.24,587.64,1.26919122]
[1743934765271,0.58011584,588.23,587.65,0.28623225]
[1743934765471,0.58011584,588.22,587.65,0.28623225]
[1743934765669,0.58011584,588.21,587.65,0.28623225]
[1743934765868,0.57,588.33,587.65,0.28623225]
[1743934766071,0.58013503,588.32,587.65,0.28623225]
[1743934766267,0.58013503,588.31,587.65,0.28623225]
[1743934766473,0.58013503,588.3,587.65,0.28623225]
[1743934766673,0.58013503,588.29,587.65,0.28623225]
[1743934766870,0.58013503,588.28,587.65,0.28623225]
[1743934767171,0.58013503,588.27,587.65,0.28623225]
[1743934767376,0.58013503,588.26,587.63,0.28623225]
[1743934767569,0.58013503,588.25,587.63,0.28623225]
[1743934767773,0.58013503,588.24,587.63,0.28623225]
[1743934767975,0.58013503,588.23,587.63,0.28623225]
[1743934768274,0.58013503,588.22,587.63,0.28623225]
[1743934768568,0.58013503,588.21,587.63,0.28623225]
[1743934768773,0.57,588.33,587.63,0.28623225]
[1743934768976,0.58015158,588.32,587.63,0.28623225]
[1743934769173,0.58015158,588.31,587.6,0.28623225]
[1743934769370,0.58015158,588.3,587.61,0.28623225]
[1743934769571,0.58015158,588.29,587.6,0.28623225]
[1743934769776,0.58015158,588.28,587.61,0.28623225]
[1743934769975,0.58015158,588.27,587.6,0.28623225]
[1743934770275,0.58015158,588.26,587.61,0.28623225]
[1743934770475,0.58015158,588.25,587.59,1.26919122]
[1743934770671,0.58015158,588.24,587.6,0.28622987]
[1743934770871,0.58015158,588.23,587.6,0.28622987]
[1743934771076,0.58015158,588.22,587.6,0.28622987]
[1743934771278,0.57,588.33,587.6,1.55542109]
[1743934771477,0.58008103,588.32,587.61,0.28622987]
[1743934771776,0.58008103,588.31,587.61,0.28622987]
[1743934771977,0.58008103,588.3,587.61,0.28622987]
[1743934772177,0.58008103,588.29,587.61,0.28622987]
[1743934772377,0.58008103,588.28,587.61,0.28622987]
[1743934772574,0.58008103,588.27,587.61,0.28622987]
[1743934772874,0.58008103,588.26,587.61,0.28622987]
[1743934773072,0.57,588.33,587.61,0.28622987]
[1743934773274,0.58008226,588.32,587.61,0.28622987]
[1743934773476,0.58008226,588.31,587.61,0.28622987]
[1743934773675,0.58008226,588.3,587.61,0.28622987]
[1743934773874,0.58008226,588.29,587.6,1.26919122]
[1743934774078,0.58008226,588.28,587.61,0.28623054]
[1743934774278,0.58008226,588.27,587.61,0.28623054]
[1743934774478,0.58008226,588.26,587.61,0.28623054]
[1743934774681,0.58008226,588.25,587.61,0.28623054]
[1743934774881,0.58008226,588.24,587.61,0.28623054]
[1743934775076,0.58008226,588.23,587.61,0.28623054]
[1743934775275,0.58009269,588.22,587.61,0.28623054]
[1743934775478,0.58009905,588.21,587.54,0.28623054]
[1743934775678,0.57,588.33,587.55,0.28623054]
[1743934775977,0.58009847,588.32,587.54,0.28623054]
[1743934776176,0.58009847,588.31,587.55,0.28623054]
[1743934776376,0.58009847,588.3,587.54,0.28623054]
[1743934776576,0.58009847,588.29,587.55,0.28623054]
[1743934776781,0.58009847,588.28,587.54,0.28623054]
[1743934776979,0.58009847,588.27,587.55,0.28623054]
[1743934777178,0.58009847,588.26,587.54,0.28623054]
[1743934777479,0.58009847,588.25,587.55,0.28623054]
[1743934777682,0.58009847,588.24,587.54,0.28623054]
[1743934777882,0.58009847,588.23,587.55,0.28623054]
[1743934778084,0.58009847,588.22,587.54,0.28623054]
[1743934778277,0.58009847,588.21,587.55,0.28623054]
[1743934778582,0.592,588.24,587.56,0.28623054]
[1743934778781,0.58010475,588.23,587.54,0.28623054]
[1743934778981,0.58010475,588.22,587.54,0.28623054]
[1743934779181,0.58010475,588.21,587.54,0.28623054]
[1743934779383,0.592,588.24,587.54,0.28623054]
[1743934779578,0.58008417,588.23,587.54,0.28623054]
[1743934779780,0.592,588.24,587.54,0.28623054]
[1743934779781,0.58008417,588.22,587.54,0.28623054]
[1743934779982,0.58008417,588.21,587.54,0.28623054]
[1743934780181,0.592,588.24,587.54,0.28623054]
[1743934780483,0.58007004,588.23,587.54,0.28623054]
[1743934780684,0.58007004,588.22,587.53,0.63629631]
[1743934780885,0.592,588.24,587.54,0.28622985]
[1743934781283,0.592,588.24,587.53,0.63629631]
[1743934781580,0.592,588.24,587.54,0.28622409]
[1743934785691,0.592,588.24,587.67,1.26919122]
[1743934785992,0.5803017,588.23,587.68,0.28622406]
[1743934786188,0.592,588.24,587.68,0.28622406]
[1743934786389,0.58030246,588.23,587.67,1.26919122]
[1743934786589,0.592,588.24,587.68,0.28622457]
[1743934786786,0.5803725,588.23,587.68,0.28622457]
[1743934786990,0.592,588.24,587.68,0.28622457]
[1743934787185,0.58038546,588.23,587.68,0.28622457]
[1743934787384,0.592,588.24,587.67,1.26919122]
[1743934787592,0.58047696,588.23,587.68,0.28622457]
[1743934787788,0.592,588.24,587.68,0.28622457]
[1743934787989,0.58047733,588.23,587.68,0.28622457]
[1743934788186,0.592,588.24,587.68,0.28622457]
[1743934788386,0.580478,588.23,587.68,0.28622457]
[1743934788590,0.580478,588.22,587.68,0.28622457]
[1743934788786,0.592,588.24,587.68,0.28622457]
[1743934789089,0.5805566,588.23,587.68,0.28622457]
[1743934789286,0.5805566,588.22,587.61,0.28622457]
[1743934789489,0.5805566,588.21,587.61,0.28622457]
[1743934789693,0.58066252,588.2,587.61,0.28622457]
[1743934789892,0.592,588.24,587.61,0.28622457]
[1743934790092,0.58067636,588.23,587.61,0.28622457]
[1743934790286,0.58067636,588.22,587.61,0.28622457]
[1743934790487,0.58067636,588.21,587.61,0.28622457]
[1743934790690,0.592,588.24,587.61,0.28622457]
[1743934790891,0.58072345,588.23,587.61,0.28622457]
[1743934791194,0.592,588.24,587.56,1.26919122]
[1743934791195,0.58072345,588.22,587.62,0.28622457]
[1743934791487,0.58072345,588.21,587.63,0.28622457]
[1743934791690,0.592,588.24,587.57,0.28622457]
[1743934791887,0.58072373,588.23,587.57,0.58209891]
[1743934792092,0.58072373,588.22,587.58,0.28622457]
[1743934792289,0.58072373,588.21,587.58,0.28622457]
[1743934792490,0.592,588.24,587.58,0.28622457]
[1743934792688,0.58071995,588.23,587.58,0.28622457]
[1743934792993,0.58071995,588.22,587.58,0.28622457]
[1743934793289,0.58071995,588.21,587.58,0.28622457]
[1743934793493,0.592,588.24,587.58,0.28622457]
[1743934793793,0.5807148,588.23,587.58,0.28622457]
[1743934793986,0.5807148,588.22,587.57,0.58209891]
[1743934794191,0.5807148,588.21,587.58,0.28622457]
[1743934794387,0.592,588.24,587.58,0.28622457]
[1743934794689,0.58071817,588.23,587.58,0.28622457]
[1743934794889,0.58071817,588.22,587.58,0.28622457]
[1743934795091,0.58071817,588.21,587.58,0.28622457]
[1743934795294,0.592,588.24,587.6,1.26919122]
[1743934795489,0.58072204,588.23,587.61,0.28622457]
[1743934795689,0.58072204,588.22,587.61,0.28622457]
[1743934795994,0.58072204,588.21,587.62,0.28621379]
[1743934796195,0.592,588.24,587.61,0.28621379]
[1743934796495,0.58063995,588.23,587.62,0.28621379]
[1743934796691,0.58063995,588.22,587.61,0.28621379]
[1743934796890,0.58063995,588.21,587.61,0.28621379]
[1743934797094,0.592,588.24,587.61,0.28621379]
[1743934797291,0.58062989,588.23,587.61,0.28621379]
[1743934797491,0.58062989,588.22,587.61,0.28621379]
[1743934797691,0.58062989,588.21,587.6,0.28621379]
[1743934797891,0.592,588.24,587.61,0.28621379]
[1743934798195,0.592,588.24,587.59,1.26919122]
[1743934798196,0.58068739,588.23,587.62,0.28621379]
[1743934798394,0.58068739,588.22,587.6,0.28621379]
[1743934798594,0.58068739,588.21,587.61,0.28621379]
[1743934798794,0.592,588.24,587.6,0.28621379]
[1743934798994,0.58071288,588.23,587.61,0.28621379]
[1743934799190,0.58071288,588.22,587.6,0.28621379]
[1743934799391,0.58071288,588.21,587.61,0.28621411]
[1743934799597,0.592,588.24,587.6,0.28621411]
[1743934799796,0.592,588.24,587.59,1.26919122]
[1743934799797,0.58073691,588.23,587.61,0.28621411]
[1743934799997,0.57,588.33,587.67,1.26919122]
[1743934799998,0.58073691,588.22,587.67,1.26919122]
[1743934800198,0.57,588.33,587.67,1.26919122]
[1743934800395,0.58079192,588.32,587.67,1.26919122]
[1743934800598,0.57,588.33,587.68,0.28615238]
[1743934802797,0.57,588.33,587.54,0.28615238]
[1743934802998,0.57,588.33,587.55,0.34039656]
[1743934803197,0.57,588.33,587.56,0.28615238]
[1743934803401,0.57,588.33,587.56,0.5819563]
[1743934803700,1.157,588.33,587.57,0.28615238]
[1743934804001,1.157,588.33,587.58,0.62653156]
[1743934804202,1.157,588.33,587.59,0.62652576]
[1743934804399,1.157,588.33,587.6,0.28615238]
[1743934804600,1.157,588.33,587.61,0.62651418]
[1743934804901,1.157,588.33,587.62,0.62650839]
[1743934805105,1.157,588.33,587.72,1.26919122]
[1743934805303,1.157,588.33,587.73,0.28615238]
[1743934805503,1.157,588.33,587.72,1.26919122]
[1743934805705,1.157,588.33,587.73,0.28611727]
[1743934807306,1.157,588.33,587.72,1.26919122]
[1743934807510,1.157,588.33,587.73,1.55531899]
[1743934807711,1.157,588.33,587.74,0.28612777]
[1743934809807,1.157,588.33,587.67,1.26919122]
[1743934812208,0.57946536,588.32,587.67,1.26919122]
[1743934812714,0.57946536,588.32,587.63,0.34035022]
[1743934812914,0.57946536,588.32,587.64,0.28620351]
[1743934813915,0.57946536,588.32,587.63,0.34035022]
[1743934814111,0.57946536,588.32,587.64,0.28620594]
[1743934816315,0.57946536,588.31,587.64,0.28620594]
[1743934816513,0.57946536,588.3,587.64,0.28620594]
[1743934816711,0.57946536,588.29,587.64,0.28620594]
[1743934816915,0.57946536,588.28,587.64,0.28620594]
[1743934817115,0.57946536,588.27,587.64,0.28620594]
[1743934817311,0.57946536,588.26,587.64,0.28620594]
[1743934817510,0.57946536,588.25,587.64,0.28620594]
[1743934817711,0.57946536,588.29,587.64,0.28620594]
[1743934818015,0.57946536,588.28,587.64,0.28620594]
[1743934818216,0.57946536,588.27,587.64,0.28620594]
[1743934818411,0.569,588.3,587.64,0.28620594]
[1743934819011,0.569,588.3,587.63,0.34035022]
[1743934819214,0.569,588.3,587.64,0.2862375]
[1743934820516,0.569,588.3,587.63,0.34035022]
[1743934820717,0.569,588.3,587.64,0.28623764]
[1743934822419,0.569,588.3,587.63,0.34035022]
[1743934822615,0.569,588.3,587.64,0.28623988]
[1743934824218,0.569,588.3,587.65,0.28624683]
[1743934824614,0.569,588.3,587.66,0.28624683]
[1743934824919,0.569,588.3,587.67,0.28624683]
[1743934825220,0.569,588.3,587.68,0.28624683]
[1743934825418,0.569,588.3,587.64,0.28624683]
[1743934825619,0.569,588.3,587.63,0.34035022]